[Event "Titled Tuesday Blitz April 11 Early 2023"]
[White "Itgelt, Khuyagtsogt"]
[Black "Khubukshanov, Erdem"]
[WhiteFideId "4902912"]
[BlackFideId "54114527"]
[WhiteElo "2227"]
[BlackElo "2420"]
[Result "0-1"]
[Round "10"]
[TimeControl "180+2"]
[Date "2023.04.11"]
[WhiteClock "0:00:04"]
[BlackClock "0:00:34"]

1. d4 {[%clk 0:03:00]}  e6 {[%clk 0:02:56]} 2. e4 {[%clk 0:02:51]}  d5 {[%clk 0:02:56]} 3. Nd2 {[%clk 0:02:51]}  c5 {[%clk 0:02:53]} 4. Ngf3 {[%clk 0:02:48]}  Nc6 {[%clk 0:02:53]} 5. exd5 {[%clk 0:02:45]}  Qxd5 {[%clk 0:02:51]} 6. Bc4 {[%clk 0:02:45]}  Qd7 {[%clk 0:02:51]} 7. Nb3 {[%clk 0:02:42]}  cxd4 {[%clk 0:02:50]} 8. Nbxd4 {[%clk 0:02:42]}  Nf6 {[%clk 0:02:48]} 9. O-O {[%clk 0:02:42]}  Be7 {[%clk 0:02:48]} 10. Nxc6 {[%clk 0:02:36]}  Qxc6 {[%clk 0:02:47]} 11. Ne5 {[%clk 0:02:36]}  Qc5 {[%clk 0:02:46]} 12. Qe2 {[%clk 0:02:28]}  O-O {[%clk 0:02:45]} 13. Rd1 {[%clk 0:02:21]}  b6 {[%clk 0:02:44]} 14. Nf3 {[%clk 0:02:00]}  Bb7 {[%clk 0:02:38]} 15. Bb3 {[%clk 0:01:48]}  Nd5 {[%clk 0:02:22]} 16. c3 {[%clk 0:01:44]}  Rfd8 {[%clk 0:02:15]} 17. Bd2 {[%clk 0:01:33]}  Rd7 {[%clk 0:02:12]} 18. Ne5 {[%clk 0:01:32]}  Rd6 {[%clk 0:02:12]} 19. Nc4 {[%clk 0:01:31]}  Rdd8 {[%clk 0:02:01]} 20. Ne3 {[%clk 0:01:25]}  Nf4 {[%clk 0:02:00]} 21. Qg4 {[%clk 0:01:18]}  Nd3 {[%clk 0:01:54]} 22. Rab1 {[%clk 0:01:12]}  Bg5 {[%clk 0:01:33]} 23. Qe2 {[%clk 0:00:55]}  Qc6 {[%clk 0:01:08]} 24. Bc2 {[%clk 0:00:32]}  Nf4 {[%clk 0:00:51]} 25. Qg4 {[%clk 0:00:32]}  h5 {[%clk 0:00:51]} 26. Qf3 {[%clk 0:00:22]}  Qxf3 {[%clk 0:00:50]} 27. gxf3 {[%clk 0:00:23]}  Bxf3 {[%clk 0:00:50]} 28. Kf1 {[%clk 0:00:12]}  Be2+ {[%clk 0:00:35]} 29. Ke1 {[%clk 0:00:11]}  Bxd1 {[%clk 0:00:36]} 30. Bxd1 {[%clk 0:00:04]}  Nd3+ {[%clk 0:00:35]} 31. Ke2 {[%clk 0:00:04]}  Nxf2 {[%clk 0:00:35]} 32. Bc2 {[%clk 0:00:04]}  Rxd2+ {[%clk 0:00:34]} 33. Kxd2 {[%clk 0:00:05]}  Ng4 {[%clk 0:00:35]} 34. Re1 {[%clk 0:00:03]}  Rd8+ {[%clk 0:00:35]} 35. Bd3 {[%clk 0:00:04]}  Ne5 {[%clk 0:00:34]} 0-1


[Site "https://www.chess.com"]

[Event "Titled Tuesday Blitz April 11 Early 2023"]
[White "Orlov, Georgi"]
[Black "Srihari L R"]
[WhiteFideId "2011271"]
[BlackFideId "46617116"]
[WhiteElo "2618"]
[BlackElo "2334"]
[Result "1-0"]
[Round "10"]
[TimeControl "180+2"]
[Date "2023.04.11"]
[WhiteClock "0:01:10"]
[BlackClock "0:00:01"]

1. d4 {[%clk 0:03:00]}  Nf6 {[%clk 0:02:44]} 2. Nf3 {[%clk 0:02:58]}  b6 {[%clk 0:02:44]} 3. c4 {[%clk 0:02:58]}  Bb7 {[%clk 0:02:42]} 4. Nc3 {[%clk 0:02:57]}  e6 {[%clk 0:02:43]} 5. Bg5 {[%clk 0:02:52]}  h6 {[%clk 0:02:40]} 6. Bh4 {[%clk 0:02:52]}  Be7 {[%clk 0:02:40]} 7. Qc2 {[%clk 0:02:51]}  d5 {[%clk 0:02:39]} 8. e3 {[%clk 0:02:50]}  O-O {[%clk 0:02:38]} 9. Rd1 {[%clk 0:02:48]}  Nbd7 {[%clk 0:02:38]} 10. Bg3 {[%clk 0:02:46]}  Rc8 {[%clk 0:02:35]} 11. cxd5 {[%clk 0:02:44]}  exd5 {[%clk 0:02:33]} 12. Bd3 {[%clk 0:02:33]}  Re8 {[%clk 0:02:25]} 13. Bf5 {[%clk 0:02:30]}  Bd6 {[%clk 0:02:19]} 14. Nb5 {[%clk 0:02:19]}  Bxg3 {[%clk 0:02:07]} 15. hxg3 {[%clk 0:02:18]}  a6 {[%clk 0:01:58]} 16. Na7 {[%clk 0:02:12]}  Ra8 {[%clk 0:01:53]} 17. Nc6 {[%clk 0:02:11]}  Bxc6 {[%clk 0:01:52]} 18. Qxc6 {[%clk 0:02:10]}  Nf8 {[%clk 0:01:52]} 19. Ne5 {[%clk 0:02:08]}  Qd6 {[%clk 0:01:46]} 20. O-O {[%clk 0:02:01]}  g6 {[%clk 0:01:38]} 21. Bh3 {[%clk 0:01:59]}  Ne4 {[%clk 0:01:37]} 22. Rc1 {[%clk 0:01:56]}  f6 {[%clk 0:01:18]} 23. Nd3 {[%clk 0:01:45]}  f5 {[%clk 0:00:27]} 24. Qxd6 {[%clk 0:01:34]}  cxd6 {[%clk 0:00:24]} 25. Nb4 {[%clk 0:01:33]}  Nf6 {[%clk 0:00:11]} 26. Rc6 {[%clk 0:01:30]}  a5 {[%clk 0:00:10]} 27. Nd3 {[%clk 0:01:29]}  Rac8 {[%clk 0:00:08]} 28. Rfc1 {[%clk 0:01:26]}  Rxc6 {[%clk 0:00:07]} 29. Rxc6 {[%clk 0:01:26]}  N8d7 {[%clk 0:00:06]} 30. Rxd6 {[%clk 0:01:17]}  Kf7 {[%clk 0:00:05]} 31. Rc6 {[%clk 0:01:13]}  Ke7 {[%clk 0:00:01]} 32. Kf1 {[%clk 0:01:12]}  Rf8 {[%clk 0:00:01]} 33. Ne5 {[%clk 0:01:10]} 1-0


[Site "https://www.chess.com"]

[Event "Titled Tuesday Blitz April 11 Early 2023"]
[White "Cherniaiev, Tykhon"]
[Black "Odegov, Artem"]
[WhiteFideId "14182360"]
[BlackFideId "34183644"]
[WhiteElo "2450"]
[BlackElo "2300"]
[Result "1-0"]
[Round "10"]
[TimeControl "180+2"]
[Date "2023.04.11"]
[WhiteClock "0:01:16"]
[BlackClock "0:00:24"]

1. Nf3 {[%clk 0:03:00]}  d5 {[%clk 0:02:57]} 2. d4 {[%clk 0:03:00]}  e6 {[%clk 0:02:56]} 3. c4 {[%clk 0:02:59]}  c5 {[%clk 0:02:56]} 4. cxd5 {[%clk 0:02:59]}  exd5 {[%clk 0:02:57]} 5. Nc3 {[%clk 0:03:00]}  Nc6 {[%clk 0:02:56]} 6. g3 {[%clk 0:03:00]}  Nf6 {[%clk 0:02:56]} 7. Bg2 {[%clk 0:03:00]}  Be7 {[%clk 0:02:56]} 8. O-O {[%clk 0:03:00]}  O-O {[%clk 0:02:57]} 9. dxc5 {[%clk 0:03:00]}  Bxc5 {[%clk 0:02:57]} 10. Bg5 {[%clk 0:03:00]}  d4 {[%clk 0:02:56]} 11. Bxf6 {[%clk 0:02:54]}  Qxf6 {[%clk 0:02:57]} 12. Ne4 {[%clk 0:02:51]}  Qe7 {[%clk 0:02:57]} 13. Nxc5 {[%clk 0:02:49]}  Qxc5 {[%clk 0:02:58]} 14. Rc1 {[%clk 0:02:49]}  Qb6 {[%clk 0:02:58]} 15. Qd2 {[%clk 0:02:49]}  Re8 {[%clk 0:02:56]} 16. Rfd1 {[%clk 0:02:45]}  Bg4 {[%clk 0:02:55]} 17. Nxd4 {[%clk 0:01:59]}  Rad8 {[%clk 0:02:24]} 18. Bxc6 {[%clk 0:01:53]}  bxc6 {[%clk 0:02:24]} 19. Qf4 {[%clk 0:01:39]}  Bxe2 {[%clk 0:02:15]} 20. Nxe2 {[%clk 0:01:37]}  Rxd1+ {[%clk 0:02:15]} 21. Rxd1 {[%clk 0:01:38]}  Rxe2 {[%clk 0:02:15]} 22. Rd7 {[%clk 0:01:17]}  f6 {[%clk 0:00:25]} 23. Qc4+ {[%clk 0:01:16]}  Re6 {[%clk 0:00:24]} 24. Qxe6+ {[%clk 0:01:16]}  Kf8 {[%clk 0:00:24]} 25. Qf7# {[%clk 0:01:16]} 1-0


[Site "https://www.chess.com"]

[Event "Titled Tuesday Blitz April 11 Early 2023"]
[White "HSH1987"]
[Black "Jumanov, Elbek"]
[BlackFideId "14202905"]
[WhiteElo "2694"]
[BlackElo "2055"]
[Result "1-0"]
[Round "10"]
[TimeControl "180+2"]
[Date "2023.04.11"]
[WhiteClock "0:00:17"]
[BlackClock "0:00:02"]

1. e4 {[%clk 0:03:00]}  c5 {[%clk 0:02:59]} 2. Nc3 {[%clk 0:03:00]}  e6 {[%clk 0:02:56]} 3. Nge2 {[%clk 0:02:58]}  a6 {[%clk 0:02:52]} 4. a4 {[%clk 0:02:56]}  Nc6 {[%clk 0:02:50]} 5. g3 {[%clk 0:02:56]}  Nf6 {[%clk 0:02:49]} 6. Bg2 {[%clk 0:02:56]}  Be7 {[%clk 0:02:49]} 7. O-O {[%clk 0:02:56]}  O-O {[%clk 0:02:46]} 8. d4 {[%clk 0:02:53]}  cxd4 {[%clk 0:02:45]} 9. Nxd4 {[%clk 0:02:54]}  Qc7 {[%clk 0:02:32]} 10. Re1 {[%clk 0:02:41]}  d6 {[%clk 0:02:28]} 11. Nb3 {[%clk 0:02:30]}  Na5 {[%clk 0:02:23]} 12. Nd4 {[%clk 0:02:23]}  Rb8 {[%clk 0:02:03]} 13. Qd3 {[%clk 0:02:11]}  b6 {[%clk 0:01:59]} 14. b3 {[%clk 0:02:11]}  Bb7 {[%clk 0:01:55]} 15. Bb2 {[%clk 0:02:11]}  Rfd8 {[%clk 0:01:49]} 16. Rad1 {[%clk 0:02:01]}  Rbc8 {[%clk 0:01:33]} 17. h3 {[%clk 0:01:59]}  Nd7 {[%clk 0:01:28]} 18. Qe2 {[%clk 0:01:45]}  Nc6 {[%clk 0:01:24]} 19. Nxc6 {[%clk 0:01:43]}  Qxc6 {[%clk 0:01:24]} 20. Rd2 {[%clk 0:01:25]}  Bf6 {[%clk 0:01:20]} 21. Nd1 {[%clk 0:01:25]}  Bxb2 {[%clk 0:01:07]} 22. Nxb2 {[%clk 0:01:26]}  Nf6 {[%clk 0:01:01]} 23. Nc4 {[%clk 0:01:18]}  d5 {[%clk 0:00:50]} 24. exd5 {[%clk 0:01:16]}  Nxd5 {[%clk 0:00:50]} 25. Red1 {[%clk 0:01:12]}  Qc7 {[%clk 0:00:39]} 26. Qe5 {[%clk 0:01:04]}  Qxe5 {[%clk 0:00:17]} 27. Nxe5 {[%clk 0:01:05]}  Rc3 {[%clk 0:00:16]} 28. Nc4 {[%clk 0:00:58]}  Rc8 {[%clk 0:00:15]} 29. Bxd5 {[%clk 0:00:55]}  exd5 {[%clk 0:00:07]} 30. Nxb6 {[%clk 0:00:55]}  Re8 {[%clk 0:00:07]} 31. Nxd5 {[%clk 0:00:45]}  Bxd5 {[%clk 0:00:06]} 32. Rxd5 {[%clk 0:00:46]}  Rxc2 {[%clk 0:00:06]} 33. Rd8 {[%clk 0:00:43]}  Kf8 {[%clk 0:00:07]} 34. Rxe8+ {[%clk 0:00:43]}  Kxe8 {[%clk 0:00:07]} 35. Rd6 {[%clk 0:00:42]}  Rb2 {[%clk 0:00:07]} 36. Rb6 {[%clk 0:00:42]}  a5 {[%clk 0:00:07]} 37. Rb5 {[%clk 0:00:42]}  g6 {[%clk 0:00:07]} 38. h4 {[%clk 0:00:42]}  h5 {[%clk 0:00:06]} 39. Kg2 {[%clk 0:00:42]}  Ke7 {[%clk 0:00:06]} 40. Kf3 {[%clk 0:00:43]}  Kf6 {[%clk 0:00:06]} 41. Ke3 {[%clk 0:00:42]}  Kg7 {[%clk 0:00:06]} 42. f3 {[%clk 0:00:42]}  Rg2 {[%clk 0:00:05]} 43. Kf4 {[%clk 0:00:43]}  Rb2 {[%clk 0:00:05]} 44. Ke3 {[%clk 0:00:41]}  Rb1 {[%clk 0:00:05]} 45. Ke4 {[%clk 0:00:37]}  Rg1 {[%clk 0:00:05]} 46. Rxa5 {[%clk 0:00:35]}  Rxg3 {[%clk 0:00:05]} 47. Rb5 {[%clk 0:00:30]}  Rh3 {[%clk 0:00:05]} 48. a5 {[%clk 0:00:27]}  Rxh4+ {[%clk 0:00:06]} 49. Ke3 {[%clk 0:00:27]}  Rh1 {[%clk 0:00:06]} 50. b4 {[%clk 0:00:25]}  Ra1 {[%clk 0:00:05]} 51. Rb6 {[%clk 0:00:25]}  h4 {[%clk 0:00:06]} 52. Kf4 {[%clk 0:00:20]}  f5 {[%clk 0:00:05]} 53. Kg5 {[%clk 0:00:18]}  h3 {[%clk 0:00:05]} 54. Rb7+ {[%clk 0:00:18]}  Kf8 {[%clk 0:00:04]} 55. Rh7 {[%clk 0:00:16]}  Rb1 {[%clk 0:00:04]} 56. a6 {[%clk 0:00:14]}  Rxb4 {[%clk 0:00:04]} 57. a7 {[%clk 0:00:14]}  Ra4 {[%clk 0:00:04]} 58. Rh8+ {[%clk 0:00:14]}  Kg7 {[%clk 0:00:05]} 59. a8=Q {[%clk 0:00:15]}  Rxa8 {[%clk 0:00:04]} 60. Rxa8 {[%clk 0:00:16]}  h2 {[%clk 0:00:04]} 61. Ra1 {[%clk 0:00:16]}  f4 {[%clk 0:00:03]} 62. Rh1 {[%clk 0:00:16]}  Kf7 {[%clk 0:00:02]} 63. Rxh2 {[%clk 0:00:17]} 1-0


[Site "https://www.chess.com"]

[Event "Titled Tuesday Blitz April 11 Early 2023"]
[White "Cornette, Matthieu"]
[Black "Souleidis, Georgios"]
[WhiteFideId "620084"]
[BlackFideId "4206827"]
[WhiteElo "2478"]
[BlackElo "2401"]
[Result "0-1"]
[Round "10"]
[TimeControl "180+2"]
[Date "2023.04.11"]
[WhiteClock "0:00:01"]
[BlackClock "0:00:19"]

1. Nc3 {[%clk 0:03:00]}  c5 {[%clk 0:02:58]} 2. e4 {[%clk 0:03:00]}  e6 {[%clk 0:02:58]} 3. Nf3 {[%clk 0:02:59]}  Nc6 {[%clk 0:02:57]} 4. Be2 {[%clk 0:02:58]}  d5 {[%clk 0:02:51]} 5. exd5 {[%clk 0:02:59]}  exd5 {[%clk 0:02:51]} 6. d4 {[%clk 0:02:59]}  Nf6 {[%clk 0:02:51]} 7. O-O {[%clk 0:02:59]}  Be7 {[%clk 0:02:52]} 8. dxc5 {[%clk 0:02:59]}  Bxc5 {[%clk 0:02:53]} 9. Bg5 {[%clk 0:02:57]}  d4 {[%clk 0:02:53]} 10. Ne4 {[%clk 0:02:53]}  Be7 {[%clk 0:02:53]} 11. Nxf6+ {[%clk 0:02:49]}  Bxf6 {[%clk 0:02:54]} 12. Bxf6 {[%clk 0:02:49]}  Qxf6 {[%clk 0:02:55]} 13. Bb5 {[%clk 0:02:42]}  O-O {[%clk 0:02:43]} 14. Bxc6 {[%clk 0:02:41]}  Qxc6 {[%clk 0:02:44]} 15. Nxd4 {[%clk 0:02:41]}  Qb6 {[%clk 0:02:45]} 16. Nb3 {[%clk 0:02:29]}  Rd8 {[%clk 0:02:42]} 17. Qf3 {[%clk 0:02:26]}  a5 {[%clk 0:02:37]} 18. Rad1 {[%clk 0:02:22]}  Be6 {[%clk 0:02:35]} 19. Qe3 {[%clk 0:01:42]}  Qb4 {[%clk 0:01:53]} 20. a3 {[%clk 0:01:29]}  Qc4 {[%clk 0:01:50]} 21. Qb6 {[%clk 0:01:07]}  Rxd1 {[%clk 0:01:04]} 22. Rxd1 {[%clk 0:01:08]}  h5 {[%clk 0:01:04]} 23. Rd8+ {[%clk 0:00:46]}  Rxd8 {[%clk 0:01:04]} 24. Qxd8+ {[%clk 0:00:47]}  Kh7 {[%clk 0:01:04]} 25. Nd4 {[%clk 0:00:44]}  a4 {[%clk 0:00:45]} 26. h3 {[%clk 0:00:39]}  g6 {[%clk 0:00:43]} 27. c3 {[%clk 0:00:30]}  Qa2 {[%clk 0:00:41]} 28. Qb6 {[%clk 0:00:28]}  Bd5 {[%clk 0:00:37]} 29. Kh2 {[%clk 0:00:27]}  Qb1 {[%clk 0:00:38]} 30. Qd6 {[%clk 0:00:22]}  Bc4 {[%clk 0:00:31]} 31. Qe5 {[%clk 0:00:16]}  Qxb2 {[%clk 0:00:29]} 32. Nf3 {[%clk 0:00:15]}  Qxa3 {[%clk 0:00:26]} 33. Qe4 {[%clk 0:00:08]}  Bb3 {[%clk 0:00:25]} 34. Qxb7 {[%clk 0:00:07]}  Qd6+ {[%clk 0:00:25]} 35. g3 {[%clk 0:00:07]}  Bd5 {[%clk 0:00:23]} 36. Qa7 {[%clk 0:00:05]}  Bxf3 {[%clk 0:00:22]} 37. Qxf7+ {[%clk 0:00:05]}  Kh6 {[%clk 0:00:23]} 38. Qxf3 {[%clk 0:00:05]}  a3 {[%clk 0:00:23]} 39. Qa8 {[%clk 0:00:05]}  Qc5 {[%clk 0:00:23]} 40. Qh8+ {[%clk 0:00:03]}  Kg5 {[%clk 0:00:23]} 41. h4+ {[%clk 0:00:03]}  Kf5 {[%clk 0:00:23]} 42. Kg2 {[%clk 0:00:03]}  Qd5+ {[%clk 0:00:22]} 43. Kh3 {[%clk 0:00:03]}  Qd7 {[%clk 0:00:22]} 44. Qf8+ {[%clk 0:00:02]}  Ke4+ {[%clk 0:00:22]} 45. Kg2 {[%clk 0:00:03]}  a2 {[%clk 0:00:20]} 46. Qf4+ {[%clk 0:00:02]}  Kd3 {[%clk 0:00:20]} 47. Qe3+ {[%clk 0:00:02]}  Kc2 {[%clk 0:00:19]} 48. Qe2+ {[%clk 0:00:03]}  Kb3 {[%clk 0:00:19]} 49. Qe1 {[%clk 0:00:01]} 0-1


[Site "https://www.chess.com"]

[Event "Titled Tuesday Blitz April 11 Early 2023"]
[White "Harsh Suresh"]
[Black "Arabidze, Meri"]
[WhiteFideId "45018464"]
[BlackFideId "13604040"]
[WhiteElo "2227"]
[BlackElo "2405"]
[Result "1-0"]
[Round "10"]
[TimeControl "180+2"]
[Date "2023.04.11"]
[WhiteClock "0:00:07"]
[BlackClock "0:00:04"]

1. e4 {[%clk 0:03:00]}  c5 {[%clk 0:03:00]} 2. Nc3 {[%clk 0:03:00]}  e6 {[%clk 0:03:00]} 3. f4 {[%clk 0:02:59]}  Nc6 {[%clk 0:03:00]} 4. Nf3 {[%clk 0:03:00]}  a6 {[%clk 0:03:00]} 5. d3 {[%clk 0:02:52]}  d6 {[%clk 0:02:58]} 6. g3 {[%clk 0:02:52]}  g6 {[%clk 0:02:58]} 7. Bg2 {[%clk 0:02:53]}  Bg7 {[%clk 0:02:59]} 8. O-O {[%clk 0:02:53]}  Nge7 {[%clk 0:02:59]} 9. Qe1 {[%clk 0:02:54]}  O-O {[%clk 0:02:59]} 10. b3 {[%clk 0:02:52]}  b5 {[%clk 0:02:57]} 11. Bb2 {[%clk 0:02:52]}  Nd4 {[%clk 0:02:50]} 12. Nxd4 {[%clk 0:02:51]}  cxd4 {[%clk 0:02:49]} 13. Ne2 {[%clk 0:02:50]}  e5 {[%clk 0:02:50]} 14. a4 {[%clk 0:02:47]}  Bd7 {[%clk 0:02:38]} 15. Ba3 {[%clk 0:02:36]}  Bc6 {[%clk 0:02:11]} 16. axb5 {[%clk 0:02:32]}  axb5 {[%clk 0:02:10]} 17. Bb4 {[%clk 0:02:32]}  Rc8 {[%clk 0:02:07]} 18. Ra7 {[%clk 0:02:22]}  Ba8 {[%clk 0:01:43]} 19. fxe5 {[%clk 0:02:11]}  Nc6 {[%clk 0:01:28]} 20. Ra2 {[%clk 0:01:32]}  Nxb4 {[%clk 0:01:28]} 21. Qxb4 {[%clk 0:01:32]}  dxe5 {[%clk 0:01:29]} 22. Qxb5 {[%clk 0:01:28]}  Bc6 {[%clk 0:01:20]} 23. Qb4 {[%clk 0:01:27]}  f5 {[%clk 0:01:09]} 24. exf5 {[%clk 0:00:58]}  Bxg2 {[%clk 0:01:10]} 25. Kxg2 {[%clk 0:00:59]}  Qd5+ {[%clk 0:01:06]} 26. Kg1 {[%clk 0:00:52]}  Bh6 {[%clk 0:00:58]} 27. h4 {[%clk 0:00:46]}  Rxf5 {[%clk 0:00:47]} 28. Rxf5 {[%clk 0:00:46]}  gxf5 {[%clk 0:00:48]} 29. Qe7 {[%clk 0:00:39]}  Be3+ {[%clk 0:00:19]} 30. Kh2 {[%clk 0:00:37]}  Qf7 {[%clk 0:00:09]} 31. Qxe5 {[%clk 0:00:22]}  Re8 {[%clk 0:00:07]} 32. Qd6 {[%clk 0:00:22]}  Bd2 {[%clk 0:00:04]} 33. Nxd4 {[%clk 0:00:14]}  Bc3 {[%clk 0:00:05]} 34. Ra6 {[%clk 0:00:04]}  f4 {[%clk 0:00:04]} 35. Ne6 {[%clk 0:00:04]}  fxg3+ {[%clk 0:00:02]} 36. Qxg3+ {[%clk 0:00:05]}  Kh8 {[%clk 0:00:02]} 37. d4 {[%clk 0:00:05]}  Bd2 {[%clk 0:00:02]} 38. Qe5+ {[%clk 0:00:04]}  Kg8 {[%clk 0:00:02]} 39. d5 {[%clk 0:00:05]}  Bh6 {[%clk 0:00:01]} 40. Qg3+ {[%clk 0:00:05]}  Kh8 {[%clk 0:00:01]} 41. Qe5+ {[%clk 0:00:05]}  Kg8 {[%clk 0:00:01]} 42. Qg3+ {[%clk 0:00:05]}  Kh8 {[%clk 0:00:01]} 43. Ra4 {[%clk 0:00:05]}  Rg8 {[%clk 0:00:01]} 44. Qe5+ {[%clk 0:00:05]}  Bg7 {[%clk 0:00:01]} 45. Nxg7 {[%clk 0:00:05]}  Rxg7 {[%clk 0:00:01]} 46. Rf4 {[%clk 0:00:05]}  Qg8 {[%clk 0:00:01]} 47. Rg4 {[%clk 0:00:05]}  h6 {[%clk 0:00:02]} 48. Qxg7+ {[%clk 0:00:05]}  Qxg7 {[%clk 0:00:02]} 49. Rxg7 {[%clk 0:00:06]}  Kxg7 {[%clk 0:00:03]} 50. Kg3 {[%clk 0:00:07]}  Kf6 {[%clk 0:00:03]} 51. Kf4 {[%clk 0:00:07]}  h5 {[%clk 0:00:04]} 52. c4 {[%clk 0:00:07]} 1-0


[Site "https://www.chess.com"]

[Event "Titled Tuesday Blitz April 11 Early 2023"]
[White "Hua, Lefong"]
[Black "Dehtiarov, Roman"]
[WhiteFideId "2602253"]
[BlackFideId "14186640"]
[WhiteElo "2626"]
[BlackElo "2189"]
[Result "0-1"]
[Round "10"]
[TimeControl "180+2"]
[Date "2023.04.11"]
[WhiteClock "0:00:03"]
[BlackClock "0:00:04"]

1. d4 {[%clk 0:03:00]}  Nf6 {[%clk 0:02:59]} 2. c4 {[%clk 0:03:00]}  e6 {[%clk 0:03:00]} 3. Nc3 {[%clk 0:02:59]}  Bb4 {[%clk 0:03:00]} 4. f3 {[%clk 0:02:57]}  O-O {[%clk 0:02:56]} 5. a3 {[%clk 0:02:56]}  Bxc3+ {[%clk 0:02:56]} 6. bxc3 {[%clk 0:02:57]}  b6 {[%clk 0:02:56]} 7. e4 {[%clk 0:02:56]}  d6 {[%clk 0:02:57]} 8. Bd3 {[%clk 0:02:56]}  Ba6 {[%clk 0:02:56]} 9. Qe2 {[%clk 0:02:56]}  Nc6 {[%clk 0:02:55]} 10. f4 {[%clk 0:02:37]}  d5 {[%clk 0:02:52]} 11. cxd5 {[%clk 0:02:24]}  Bxd3 {[%clk 0:02:52]} 12. Qxd3 {[%clk 0:02:24]}  exd5 {[%clk 0:02:53]} 13. e5 {[%clk 0:02:24]}  Ne4 {[%clk 0:02:53]} 14. Nf3 {[%clk 0:02:16]}  f5 {[%clk 0:02:54]} 15. O-O {[%clk 0:02:14]}  Na5 {[%clk 0:02:54]} 16. a4 {[%clk 0:02:10]}  Nc4 {[%clk 0:02:54]} 17. Nd2 {[%clk 0:02:04]}  Ncxd2 {[%clk 0:02:49]} 18. Bxd2 {[%clk 0:02:04]}  Qe7 {[%clk 0:02:49]} 19. Bc1 {[%clk 0:02:00]}  Qe6 {[%clk 0:02:49]} 20. a5 {[%clk 0:01:56]}  c5 {[%clk 0:02:48]} 21. Ba3 {[%clk 0:01:50]}  c4 {[%clk 0:02:48]} 22. Qc2 {[%clk 0:01:44]}  Rfb8 {[%clk 0:02:48]} 23. axb6 {[%clk 0:01:35]}  Rxb6 {[%clk 0:02:49]} 24. Bb4 {[%clk 0:01:33]}  a5 {[%clk 0:02:46]} 25. Rxa5 {[%clk 0:01:27]}  Rxa5 {[%clk 0:02:46]} 26. Bxa5 {[%clk 0:01:27]}  Rb3 {[%clk 0:02:46]} 27. Rb1 {[%clk 0:01:23]}  Qa6 {[%clk 0:02:45]} 28. Bb4 {[%clk 0:01:04]}  Qa4 {[%clk 0:02:44]} 29. Qc1 {[%clk 0:00:50]}  Qa2 {[%clk 0:02:39]} 30. Ra1 {[%clk 0:00:41]}  Qf2+ {[%clk 0:02:38]} 31. Kh1 {[%clk 0:00:41]}  Rb2 {[%clk 0:02:23]} 32. Qf1 {[%clk 0:00:30]}  Qe3 {[%clk 0:02:15]} 33. e6 {[%clk 0:00:26]}  h5 {[%clk 0:02:14]} 34. e7 {[%clk 0:00:15]}  Nf2+ {[%clk 0:02:12]} 35. Kg1 {[%clk 0:00:13]}  Nd3+ {[%clk 0:01:48]} 36. Kh1 {[%clk 0:00:12]}  Kh7 {[%clk 0:01:36]} 37. Qf3 {[%clk 0:00:09]}  Qxf3 {[%clk 0:00:29]} 38. gxf3 {[%clk 0:00:10]}  Re2 {[%clk 0:00:29]} 39. Ra8 {[%clk 0:00:07]}  Re1+ {[%clk 0:00:29]} 40. Kg2 {[%clk 0:00:07]}  Re2+ {[%clk 0:00:29]} 41. Kf1 {[%clk 0:00:06]}  Re1+ {[%clk 0:00:29]} 42. Kg2 {[%clk 0:00:06]}  Nxf4+ {[%clk 0:00:05]} 43. Kg3 {[%clk 0:00:03]}  Nd3 {[%clk 0:00:04]} 0-1


[Site "https://www.chess.com"]

[Event "Titled Tuesday Blitz April 11 Early 2023"]
[White "Kumala, Aleksander"]
[Black "Fishchuk, Vladyslav"]
[WhiteFideId "1141880"]
[BlackFideId "34122117"]
[WhiteElo "2269"]
[BlackElo "2082"]
[Result "1-0"]
[Round "10"]
[TimeControl "180+2"]
[Date "2023.04.11"]
[WhiteClock "0:01:34"]
[BlackClock "0:00:17"]

1. d4 {[%clk 0:03:00]}  Nf6 {[%clk 0:02:59]} 2. Bg5 {[%clk 0:03:00]}  d5 {[%clk 0:02:58]} 3. Bxf6 {[%clk 0:03:00]}  gxf6 {[%clk 0:02:59]} 4. e3 {[%clk 0:03:01]}  c5 {[%clk 0:02:59]} 5. dxc5 {[%clk 0:03:02]}  e6 {[%clk 0:02:59]} 6. Nf3 {[%clk 0:03:01]}  Bxc5 {[%clk 0:02:56]} 7. Be2 {[%clk 0:03:02]}  Nc6 {[%clk 0:02:56]} 8. O-O {[%clk 0:03:02]}  Qe7 {[%clk 0:02:43]} 9. c4 {[%clk 0:03:02]}  dxc4 {[%clk 0:02:42]} 10. Qc2 {[%clk 0:03:01]}  e5 {[%clk 0:02:23]} 11. Qxc4 {[%clk 0:02:58]}  Be6 {[%clk 0:02:23]} 12. Qa4 {[%clk 0:02:57]}  O-O {[%clk 0:02:02]} 13. Nc3 {[%clk 0:02:57]}  f5 {[%clk 0:01:54]} 14. Rac1 {[%clk 0:02:53]}  Bb6 {[%clk 0:01:50]} 15. Bb5 {[%clk 0:02:50]}  e4 {[%clk 0:01:48]} 16. Bxc6 {[%clk 0:02:46]}  bxc6 {[%clk 0:01:48]} 17. Ne5 {[%clk 0:02:46]}  Kh8 {[%clk 0:01:19]} 18. Nxc6 {[%clk 0:02:42]}  Qg5 {[%clk 0:01:17]} 19. Qb5 {[%clk 0:02:32]}  Rg8 {[%clk 0:01:15]} 20. g3 {[%clk 0:02:31]}  h5 {[%clk 0:01:10]} 21. Qe5+ {[%clk 0:02:22]}  Kh7 {[%clk 0:01:05]} 22. Nd5 {[%clk 0:02:16]}  Bxd5 {[%clk 0:00:59]} 23. Qxd5 {[%clk 0:02:17]}  h4 {[%clk 0:00:38]} 24. Ne5 {[%clk 0:02:09]}  hxg3 {[%clk 0:00:32]} 25. hxg3 {[%clk 0:02:06]}  Bxe3 {[%clk 0:00:31]} 26. Kg2 {[%clk 0:01:55]}  Bxc1 {[%clk 0:00:18]} 27. Rh1+ {[%clk 0:01:54]}  Qh6 {[%clk 0:00:18]} 28. Qxf7+ {[%clk 0:01:48]}  Rg7 {[%clk 0:00:17]} 29. Qxf5+ {[%clk 0:01:43]}  Kh8 {[%clk 0:00:16]} 30. Rxh6+ {[%clk 0:01:34]}  Bxh6 {[%clk 0:00:17]} 31. Nf7+ {[%clk 0:01:34]} 1-0


[Site "https://www.chess.com"]